[Event "Late-Titled-Tuesday-Blitz-May-07-2024"]
[Site "Chess.com"]
[Date "2024.05.07"]
[Round "4"]
[White "Oleg_Papayan"]
[Black "Slovafn"]
[Result "1/2-1/2"]
[WhiteElo "2639"]
[BlackElo "2424"]
[TimeControl "180+1"]
[EndTime "14:41:29 PDT"]
[Termination "Game drawn by repetition"]

1. e4 {[%clk 0:03:00.9]} 1... c5 {[%clk 0:02:59.3]} 2. d4 {[%clk 0:03:00.4]}
2... cxd4 {[%clk 0:02:58.5]} 3. Qxd4 {[%clk 0:03:01.3]} 3... Nc6 {[%clk
0:02:58]} 4. Qd3 {[%clk 0:03:01.9]} 4... g6 {[%clk 0:02:58.4]} 5. Nc3 {[%clk
0:03:02.4]} 5... Bg7 {[%clk 0:02:58.9]} 6. Nf3 {[%clk 0:03:02.7]} 6... Nf6
{[%clk 0:02:59.3]} 7. Be2 {[%clk 0:03:03.2]} 7... O-O {[%clk 0:02:56.9]} 8. O-O
{[%clk 0:03:03.8]} 8... d5 {[%clk 0:02:50.2]} 9. Nxd5 {[%clk 0:03:00.6]} 9...
Nxd5 {[%clk 0:02:49.7]} 10. exd5 {[%clk 0:03:01.5]} 10... Nb4 {[%clk 0:02:49.5]}
11. Qb3 {[%clk 0:03:02.1]} 11... a5 {[%clk 0:02:17.1]} 12. a3 {[%clk 0:02:43.7]}
12... Nxd5 {[%clk 0:02:07.2]} 13. Rd1 {[%clk 0:02:43.4]} 13... e6 {[%clk
0:01:53.1]} 14. c4 {[%clk 0:02:43.3]} 14... Qb6 {[%clk 0:01:52.8]} 15. Qc2
{[%clk 0:02:18.8]} 15... Nf6 {[%clk 0:01:43.2]} 16. Be3 {[%clk 0:02:13.7]} 16...
Qc6 {[%clk 0:01:42.7]} 17. Nd4 {[%clk 0:02:04.4]} 17... Qe8 {[%clk 0:01:33.1]}
18. Nb5 {[%clk 0:01:58.2]} 18... Qe7 {[%clk 0:01:27]} 19. Bf3 {[%clk 0:01:35]}
19... e5 {[%clk 0:01:14.2]} 20. c5 {[%clk 0:01:04.2]} 20... Bf5 {[%clk
0:01:08.5]} 21. Qc4 {[%clk 0:00:56.6]} 21... e4 {[%clk 0:01:04.7]} 22. Be2
{[%clk 0:00:54]} 22... Be6 {[%clk 0:01:02.3]} 23. Qc2 {[%clk 0:00:49]} 23... a4
{[%clk 0:01:02.7]} 24. Nd4 {[%clk 0:00:46]} 24... Nd5 {[%clk 0:01:00.4]} 25.
Nxe6 {[%clk 0:00:45.8]} 25... Qxe6 {[%clk 0:00:59.9]} 26. Bd4 {[%clk 0:00:45.1]}
26... Bxd4 {[%clk 0:00:54.6]} 27. Rxd4 {[%clk 0:00:46]} 27... Nf4 {[%clk
0:00:55.2]} 28. Rxe4 {[%clk 0:00:39.1]} 28... Nxe2+ {[%clk 0:00:55.4]} 29. Qxe2
{[%clk 0:00:37.9]} 29... Qb3 {[%clk 0:00:54.7]} 30. Rb4 {[%clk 0:00:33.9]} 30...
Qd5 {[%clk 0:00:54.4]} 31. Qc4 {[%clk 0:00:28.2]} 31... Qc6 {[%clk 0:00:50.2]}
32. Rb6 {[%clk 0:00:25.4]} 32... Qc7 {[%clk 0:00:49.9]} 33. Qb5 {[%clk
0:00:23.7]} 33... Rac8 {[%clk 0:00:39.4]} 34. Rxb7 {[%clk 0:00:22.5]} 34... Qxc5
{[%clk 0:00:39.5]} 35. Qxc5 {[%clk 0:00:20.9]} 35... Rxc5 {[%clk 0:00:40.4]} 36.
Ra7 {[%clk 0:00:17.7]} 36... Rfc8 {[%clk 0:00:39.1]} 37. g3 {[%clk 0:00:16.6]}
37... Rc2 {[%clk 0:00:36.5]} 38. Rxa4 {[%clk 0:00:15]} 38... Rxb2 {[%clk
0:00:37]} 39. Rf4 {[%clk 0:00:14.8]} 39... Rcc2 {[%clk 0:00:36.6]} 40. a4 {[%clk
0:00:15.1]} 40... Ra2 {[%clk 0:00:36.4]} 41. Rb1 {[%clk 0:00:12.1]} 41... Rc7
{[%clk 0:00:19.4]} 42. h4 {[%clk 0:00:10.2]} 42... Ra7 {[%clk 0:00:19.1]} 43.
Rbb4 {[%clk 0:00:10.4]} 43... h5 {[%clk 0:00:18.5]} 44. Kg2 {[%clk 0:00:10.7]}
44... Kg7 {[%clk 0:00:19]} 45. Rfe4 {[%clk 0:00:09.6]} 45... Ra3 {[%clk
0:00:19.1]} 46. Red4 {[%clk 0:00:09.2]} 46... Ra2 {[%clk 0:00:19.4]} 47. Rf4
{[%clk 0:00:09.2]} 47... Ra3 {[%clk 0:00:19.9]} 48. Kf1 {[%clk 0:00:09.7]} 48...
Ra2 {[%clk 0:00:20.2]} 49. Ke1 {[%clk 0:00:08.9]} 49... Rc7 {[%clk 0:00:19]} 50.
Rfc4 {[%clk 0:00:07.5]} 50... Re7+ {[%clk 0:00:18.6]} 51. Re4 {[%clk 0:00:07.5]}
51... Rc7 {[%clk 0:00:18.7]} 52. Rbc4 {[%clk 0:00:08]} 52... Rb7 {[%clk
0:00:18.7]} 53. Kf1 {[%clk 0:00:07.4]} 53... Rb1+ {[%clk 0:00:17.8]} 54. Kg2
{[%clk 0:00:07.7]} 54... Rb7 {[%clk 0:00:17.9]} 55. Re5 {[%clk 0:00:07.4]} 55...
Ra7 {[%clk 0:00:17.9]} 56. Ree4 {[%clk 0:00:07.2]} 56... Rb7 {[%clk 0:00:18.2]}
57. Kf3 {[%clk 0:00:06.7]} 57... Rb3+ {[%clk 0:00:18.2]} 58. Re3 {[%clk
0:00:07.1]} 58... Rbb2 {[%clk 0:00:18.2]} 59. Ke4 {[%clk 0:00:05.6]} 59... Rxf2
{[%clk 0:00:18]} 60. Kd5 {[%clk 0:00:06]} 60... Rfd2+ {[%clk 0:00:16.4]} 61. Kc5
{[%clk 0:00:06]} 61... Rd7 {[%clk 0:00:16.1]} 62. Kc6 {[%clk 0:00:05.2]} 62...
Ra7 {[%clk 0:00:16]} 63. Ree4 {[%clk 0:00:05]} 63... Ra5 {[%clk 0:00:15.7]} 64.
Kb6 {[%clk 0:00:05.4]} 64... Ra8 {[%clk 0:00:14.6]} 65. Kb7 {[%clk 0:00:05.9]}
65... Rb2+ {[%clk 0:00:15.1]} 66. Rb4 {[%clk 0:00:06]} 66... Rxa4 {[%clk
0:00:13.2]} 67. Rxb2 {[%clk 0:00:03]} 67... Rxe4 {[%clk 0:00:13]} 68. Rb3 {[%clk
0:00:03.5]} 68... Kf6 {[%clk 0:00:12.5]} 69. Kc6 {[%clk 0:00:04.1]} 69... Rd4
{[%clk 0:00:12]} 70. Rf3+ {[%clk 0:00:04.1]} 70... Ke6 {[%clk 0:00:11.6]} 71.
Kc5 {[%clk 0:00:04.4]} 71... Rd2 {[%clk 0:00:10.8]} 72. Kc4 {[%clk 0:00:04.4]}
72... f6 {[%clk 0:00:09.8]} 73. Re3+ {[%clk 0:00:04.1]} 73... Kf5 {[%clk
0:00:09.6]} 74. Rf3+ {[%clk 0:00:05]} 74... Ke5 {[%clk 0:00:10]} 75. Re3+ {[%clk
0:00:04.3]} 75... Kf5 {[%clk 0:00:10.2]} 76. Rf3+ {[%clk 0:00:05.2]} 76... Kg4
{[%clk 0:00:08.2]} 77. Rxf6 {[%clk 0:00:05.6]} 77... Kxg3 {[%clk 0:00:08.3]} 78.
Rxg6+ {[%clk 0:00:05.5]} 78... Kxh4 {[%clk 0:00:08.8]} 79. Kc3 {[%clk
0:00:05.9]} 79... Rd8 {[%clk 0:00:08.1]} 80. Rg7 {[%clk 0:00:05.9]} 80... Kh3
{[%clk 0:00:08.3]} 81. Rg5 {[%clk 0:00:05.4]} 81... h4 {[%clk 0:00:08.6]} 82.
Rg7 {[%clk 0:00:05.9]} 82... Kh2 {[%clk 0:00:09]} 83. Kc2 {[%clk 0:00:06.6]}
83... h3 {[%clk 0:00:09.9]} 84. Kc3 {[%clk 0:00:07.2]} 84... Kh1 {[%clk
0:00:05.8]} 85. Kc2 {[%clk 0:00:07.5]} 85... Rf8 {[%clk 0:00:04.9]} 86. Kd2
{[%clk 0:00:07.1]} 86... Rf2+ {[%clk 0:00:04.8]} 87. Ke1 {[%clk 0:00:07.3]}
87... Rg2 {[%clk 0:00:05.7]} 88. Rh7 {[%clk 0:00:04.9]} 88... h2 {[%clk
0:00:04.4]} 89. Kf1 {[%clk 0:00:04.4]} 89... Rg6 {[%clk 0:00:04.5]} 90. Rh8
{[%clk 0:00:03.3]} 90... Rf6+ {[%clk 0:00:04.8]} 91. Ke2 {[%clk 0:00:03.9]}
91... Kg2 {[%clk 0:00:04.1]} 92. Rg8+ {[%clk 0:00:04.3]} 92... Kh3 {[%clk
0:00:04]} 93. Rh8+ {[%clk 0:00:04.8]} 93... Kg3 {[%clk 0:00:04.5]} 94. Rg8+
{[%clk 0:00:05.3]} 94... Kh3 {[%clk 0:00:04.1]} 95. Rh8+ {[%clk 0:00:05.7]}
95... Kg3 {[%clk 0:00:04]} 96. Rg8+ {[%clk 0:00:06.2]} 96... Kh4 {[%clk
0:00:04.1]} 97. Rh8+ {[%clk 0:00:06.6]} 97... Kg3 {[%clk 0:00:04.7]} 1/2-1/2

[Event "Late-Titled-Tuesday-Blitz-May-07-2024"]
[Site "Chess.com"]
[Date "2024.05.07"]
[Round "4"]
[White "BardArtem"]
[Black "Jospem"]
[Result "1-0"]
[WhiteElo "2786"]
[BlackElo "2994"]
[TimeControl "180+1"]
[EndTime "14:41:45 PDT"]
[Termination "BardArtem won on time"]

1. d4 {[%clk 0:03:00.9]} 1... Nf6 {[%clk 0:02:59.9]} 2. Nc3 {[%clk 0:03:00.6]}
2... d5 {[%clk 0:02:59.2]} 3. Bf4 {[%clk 0:03:00.7]} 3... a6 {[%clk 0:02:54.9]}
4. e3 {[%clk 0:03:00.1]} 4... Bf5 {[%clk 0:02:54.6]} 5. Nf3 {[%clk 0:02:58.9]}
5... e6 {[%clk 0:02:53.4]} 6. Ne5 {[%clk 0:02:59]} 6... h6 {[%clk 0:02:52.2]} 7.
Bd3 {[%clk 0:02:58.8]} 7... Bxd3 {[%clk 0:02:48.9]} 8. cxd3 {[%clk 0:02:59.7]}
8... Nbd7 {[%clk 0:02:46.7]} 9. O-O {[%clk 0:02:58]} 9... Nxe5 {[%clk
0:02:46.5]} 10. Bxe5 {[%clk 0:02:57.2]} 10... Nd7 {[%clk 0:02:46.3]} 11. Bg3
{[%clk 0:02:57.3]} 11... Be7 {[%clk 0:02:42.6]} 12. Rc1 {[%clk 0:02:57.1]} 12...
c6 {[%clk 0:02:41.8]} 13. Qb3 {[%clk 0:02:56.8]} 13... Qb6 {[%clk 0:02:41.4]}
14. Qxb6 {[%clk 0:02:44.1]} 14... Nxb6 {[%clk 0:02:42.3]} 15. Rc2 {[%clk
0:02:43.3]} 15... O-O {[%clk 0:02:34.7]} 16. Rfc1 {[%clk 0:02:43.5]} 16... Rfc8
{[%clk 0:02:30.6]} 17. Kf1 {[%clk 0:02:43.1]} 17... f6 {[%clk 0:02:30.4]} 18. h4
{[%clk 0:02:40.1]} 18... h5 {[%clk 0:02:26.5]} 19. Ke2 {[%clk 0:02:33]} 19...
Kf7 {[%clk 0:02:22.5]} 20. f3 {[%clk 0:02:33.1]} 20... f5 {[%clk 0:02:22]} 21.
e4 {[%clk 0:02:23.6]} 21... Bf6 {[%clk 0:02:17.5]} 22. e5 {[%clk 0:02:15.8]}
22... Be7 {[%clk 0:02:16.8]} 23. Bf2 {[%clk 0:02:11.9]} 23... a5 {[%clk
0:02:13.3]} 24. a3 {[%clk 0:02:05.6]} 24... Rh8 {[%clk 0:02:12.4]} 25. Rh1
{[%clk 0:01:58.1]} 25... a4 {[%clk 0:02:10.6]} 26. Be3 {[%clk 0:01:55.4]} 26...
Nd7 {[%clk 0:02:10.2]} 27. Bg5 {[%clk 0:01:54]} 27... Bxg5 {[%clk 0:02:09]} 28.
hxg5 {[%clk 0:01:54.9]} 28... Nf8 {[%clk 0:02:09.9]} 29. Ke3 {[%clk 0:01:52.1]}
29... Ng6 {[%clk 0:02:10]} 30. Ne2 {[%clk 0:01:52.5]} 30... h4 {[%clk
0:02:05.5]} 31. Rc5 {[%clk 0:01:47.7]} 31... Ra6 {[%clk 0:02:04.5]} 32. Nf4
{[%clk 0:01:45.7]} 32... Rb6 {[%clk 0:01:58.9]} 33. Rc2 {[%clk 0:01:45.6]} 33...
Rb3 {[%clk 0:01:48.7]} 34. Ne2 {[%clk 0:01:25.2]} 34... Rh5 {[%clk 0:01:40.7]}
35. f4 {[%clk 0:01:23.3]} 35... Rh8 {[%clk 0:01:36.9]} 36. Ng1 {[%clk
0:01:18.8]} 36... c5 {[%clk 0:01:00.6]} 37. Rxc5 {[%clk 0:00:51.8]} 37... Rxb2
{[%clk 0:01:00.7]} 38. g3 {[%clk 0:00:36.4]} 38... Ne7 {[%clk 0:00:28.2]} 39.
gxh4 {[%clk 0:00:30.5]} 39... Nc6 {[%clk 0:00:27.5]} 40. h5 {[%clk 0:00:29.1]}
40... Rb3 {[%clk 0:00:27.7]} 41. Nf3 {[%clk 0:00:26.9]} 41... Rxa3 {[%clk
0:00:27.7]} 42. Rb5 {[%clk 0:00:27]} 42... Rb3 {[%clk 0:00:24.5]} 43. Rxb3
{[%clk 0:00:14.6]} 43... axb3 {[%clk 0:00:25.4]} 44. Rb1 {[%clk 0:00:07.1]}
44... Rxh5 {[%clk 0:00:24.7]} 45. Rxb3 {[%clk 0:00:06]} 45... Nd8 {[%clk
0:00:24.6]} 46. Rc3 {[%clk 0:00:04.3]} 46... Nc6 {[%clk 0:00:16.5]} 47. Rb3
{[%clk 0:00:04.6]} 47... Rh3 {[%clk 0:00:13.4]} 48. Rxb7+ {[%clk 0:00:04.7]}
48... Kf8 {[%clk 0:00:13.5]} 49. Kf2 {[%clk 0:00:05.1]} 49... Rh1 {[%clk
0:00:10.7]} 50. g6 {[%clk 0:00:05.2]} 50... Ra1 {[%clk 0:00:08.8]} 51. Rc7
{[%clk 0:00:03.7]} 51... Ne7 {[%clk 0:00:08.7]} 52. Ng5 {[%clk 0:00:03]} 52...
Nxg6 {[%clk 0:00:09.3]} 53. Nxe6+ {[%clk 0:00:03.2]} 53... Ke8 {[%clk 0:00:10]}
54. Nxg7+ {[%clk 0:00:03.8]} 54... Kd8 {[%clk 0:00:10.7]} 55. Ne6+ {[%clk
0:00:04.5]} 55... Ke8 {[%clk 0:00:11.3]} 56. Rg7 {[%clk 0:00:04.5]} 56... Ne7
{[%clk 0:00:11.6]} 57. Nc7+ {[%clk 0:00:04]} 57... Kf8 {[%clk 0:00:11.5]} 58.
Ne6+ {[%clk 0:00:04.4]} 58... Ke8 {[%clk 0:00:11.7]} 59. Ke3 {[%clk 0:00:04.8]}
59... Re1+ {[%clk 0:00:11.8]} 60. Kd2 {[%clk 0:00:05]} 60... Ra1 {[%clk
0:00:12.7]} 61. Rh7 {[%clk 0:00:05.1]} 61... Rb1 {[%clk 0:00:11.3]} 62. Kc3
{[%clk 0:00:04.8]} 62... Rb6 {[%clk 0:00:11.8]} 63. Nc5 {[%clk 0:00:04.8]} 63...
Ng6 {[%clk 0:00:10.6]} 64. Rh6 {[%clk 0:00:04.5]} 64... Kf7 {[%clk 0:00:08.7]}
65. Kd2 {[%clk 0:00:04.7]} 65... Rb2+ {[%clk 0:00:07.9]} 66. Ke3 {[%clk
0:00:04.9]} 66... Rb1 {[%clk 0:00:08.1]} 67. e6+ {[%clk 0:00:04.8]} 67... Kg7
{[%clk 0:00:08.6]} 68. Rh2 {[%clk 0:00:04.3]} 68... Re1+ {[%clk 0:00:08.6]} 69.
Kd2 {[%clk 0:00:04.9]} 69... Ra1 {[%clk 0:00:08.5]} 70. Re2 {[%clk 0:00:04.7]}
70... Kf6 {[%clk 0:00:07.3]} 71. Nd7+ {[%clk 0:00:03.9]} 71... Ke7 {[%clk
0:00:07.7]} 72. Ne5 {[%clk 0:00:03.5]} 72... Nxf4 {[%clk 0:00:07.7]} 73. Nc6+
{[%clk 0:00:04.1]} 73... Ke8 {[%clk 0:00:08.2]} 74. Re5 {[%clk 0:00:04]} 74...
Ra2+ {[%clk 0:00:08.3]} 75. Kc3 {[%clk 0:00:03]} 75... Ne2+ {[%clk 0:00:08]} 76.
Kb3 {[%clk 0:00:02.3]} 76... Nc1+ {[%clk 0:00:08]} 77. Kc3 {[%clk 0:00:02.9]}
77... Ne2+ {[%clk 0:00:07.8]} 78. Kb4 {[%clk 0:00:03.6]} 78... f4 {[%clk
0:00:07.6]} 79. Rh5 {[%clk 0:00:03]} 79... Kf8 {[%clk 0:00:02.3]} 80. e7+ {[%clk
0:00:03.5]} 80... Kf7 {[%clk 0:00:02.9]} 81. Rh7+ {[%clk 0:00:04]} 81... Kg6
{[%clk 0:00:03.4]} 82. e8=Q+ {[%clk 0:00:04.5]} 82... Kxh7 {[%clk 0:00:03.9]}
83. Ne7 {[%clk 0:00:04.7]} 83... Rb2+ {[%clk 0:00:02.8]} 84. Ka3 {[%clk
0:00:05.3]} 84... Rb6 {[%clk 0:00:03.4]} 85. Qg8+ {[%clk 0:00:05.2]} 85... Kh6
{[%clk 0:00:03.8]} 86. Nf5+ {[%clk 0:00:04.8]} 86... Kh5 {[%clk 0:00:03.9]} 87.
Qxd5 {[%clk 0:00:05.5]} 87... Kg4 {[%clk 0:00:03.2]} 88. Nd6 {[%clk 0:00:04.3]}
88... Rb1 {[%clk 0:00:02.1]} 89. Qf5+ {[%clk 0:00:04.3]} 89... Kf3 {[%clk
0:00:02.1]} 90. Qh5+ {[%clk 0:00:04]} 90... Kf2 {[%clk 0:00:02.4]} 91. Ne4+
{[%clk 0:00:04.7]} 91... Ke3 {[%clk 0:00:03]} 92. d5 {[%clk 0:00:03.8]} 92... f3
{[%clk 0:00:03]} 93. d6 {[%clk 0:00:04.5]} 93... Kxd3 {[%clk 0:00:03.4]} 94. d7
{[%clk 0:00:04.4]} 94... Nd4 {[%clk 0:00:03.4]} 95. Nc5+ {[%clk 0:00:04.3]}
95... Kc3 {[%clk 0:00:03.5]} 96. Na4+ {[%clk 0:00:03.1]} 96... Kc4 {[%clk
0:00:03.7]} 97. Qf7+ {[%clk 0:00:03.4]} 97... Kb5 {[%clk 0:00:02.7]} 98. Nc3+
{[%clk 0:00:02.6]} 98... Kc5 {[%clk 0:00:02.5]} 99. Nxb1 {[%clk 0:00:03.5]} 1-0

[Event "Late-Titled-Tuesday-Blitz-May-07-2024"]
[Site "Chess.com"]
[Date "2024.05.07"]
[Round "4"]
[White "Blackmind96"]
[Black "LaStreetCmaMaison"]
[Result "1-0"]
[WhiteElo "2890"]
[BlackElo "2614"]
[TimeControl "180+1"]
[EndTime "14:41:52 PDT"]
[Termination "Blackmind96 won by resignation"]

1. d4 {[%clk 0:03:00.9]} 1... Nc6 {[%clk 0:02:59.4]} 2. Nf3 {[%clk 0:02:57.6]}
2... d6 {[%clk 0:02:59.9]} 3. c4 {[%clk 0:02:53.4]} 3... e5 {[%clk 0:02:59.4]}
4. Nc3 {[%clk 0:02:53.1]} 4... g6 {[%clk 0:02:58.6]} 5. dxe5 {[%clk 0:02:42.6]}
5... Be6 {[%clk 0:02:51.1]} 6. Bg5 {[%clk 0:02:32.5]} 6... Qd7 {[%clk 0:02:49]}
7. exd6 {[%clk 0:02:31.9]} 7... Bxd6 {[%clk 0:02:44.4]} 8. e3 {[%clk 0:02:30.2]}
8... Nge7 {[%clk 0:02:25]} 9. Bf6 {[%clk 0:02:18.5]} 9... Rg8 {[%clk 0:02:18.1]}
10. Ne4 {[%clk 0:02:17.2]} 10... Bb4+ {[%clk 0:01:41]} 11. Bc3 {[%clk
0:02:15.8]} 11... Bxc3+ {[%clk 0:01:41.2]} 12. Nxc3 {[%clk 0:02:13.9]} 12...
O-O-O {[%clk 0:01:33.1]} 13. Qxd7+ {[%clk 0:02:12.6]} 13... Rxd7 {[%clk
0:01:34]} 14. Rd1 {[%clk 0:02:09]} 14... Rxd1+ {[%clk 0:01:28.9]} 15. Kxd1
{[%clk 0:02:09.9]} 15... Rd8+ {[%clk 0:01:28]} 16. Kc1 {[%clk 0:02:06.9]} 16...
Nb4 {[%clk 0:01:02.9]} 17. Nd4 {[%clk 0:02:05.6]} 17... Nf5 {[%clk 0:00:40.9]}
18. Nxe6 {[%clk 0:02:02.1]} 18... fxe6 {[%clk 0:00:41.8]} 19. a3 {[%clk
0:02:01.6]} 19... Nc6 {[%clk 0:00:40.3]} 20. Be2 {[%clk 0:01:57.8]} 20... Rf8
{[%clk 0:00:36.1]} 21. g3 {[%clk 0:01:52.8]} 21... Nd6 {[%clk 0:00:27.5]} 22.
Rf1 {[%clk 0:01:45.1]} 22... Na5 {[%clk 0:00:23.1]} 23. Nb5 {[%clk 0:01:18.7]}
23... Naxc4 {[%clk 0:00:23.4]} 24. Nxa7+ {[%clk 0:01:15.1]} 24... Kd7 {[%clk
0:00:12.2]} 25. Nb5 {[%clk 0:01:15.5]} 25... Ne5 {[%clk 0:00:05.4]} 26. Nc3
{[%clk 0:01:12.6]} 26... h5 {[%clk 0:00:04.2]} 27. h3 {[%clk 0:01:11.1]} 27...
Nf3 {[%clk 0:00:04.7]} 28. Bxf3 {[%clk 0:01:04.4]} 28... Rxf3 {[%clk 0:00:05.6]}
29. Kd1 {[%clk 0:00:59.2]} 29... Nc4 {[%clk 0:00:05.8]} 30. Ke2 {[%clk
0:00:59.5]} 30... Rf5 {[%clk 0:00:06.5]} 31. Rb1 {[%clk 0:00:54]} 31... b5
{[%clk 0:00:04.6]} 32. a4 {[%clk 0:00:51.6]} 32... c6 {[%clk 0:00:04.7]} 33.
axb5 {[%clk 0:00:50.2]} 33... cxb5 {[%clk 0:00:05.6]} 34. b3 {[%clk 0:00:50.5]}
34... Na3 {[%clk 0:00:03]} 35. Rd1+ {[%clk 0:00:44.8]} 35... Kc6 {[%clk
0:00:03.2]} 36. Na2 {[%clk 0:00:43.7]} 36... Rc5 {[%clk 0:00:02.3]} 37. g4
{[%clk 0:00:43.5]} 37... Nc2 {[%clk 0:00:02.1]} 38. Rd2 {[%clk 0:00:40.5]} 38...
Kb6 {[%clk 0:00:02]} 39. Kd1 {[%clk 0:00:35]} 39... Na3 {[%clk 0:00:01.6]} 40.
Nb4 {[%clk 0:00:32.4]} 40... Ka5 {[%clk 0:00:01.9]} 41. Na2 {[%clk 0:00:29.9]}
41... b4 {[%clk 0:00:02.3]} 42. gxh5 {[%clk 0:00:27.2]} 42... Rxh5 {[%clk
0:00:01.8]} 43. Rd6 {[%clk 0:00:27.8]} 43... Rxh3 {[%clk 0:00:02]} 44. Rxe6
{[%clk 0:00:27.3]} 44... Rh1+ {[%clk 0:00:02.8]} 45. Ke2 {[%clk 0:00:27.4]}
45... Ra1 {[%clk 0:00:02.1]} 46. Nxb4 {[%clk 0:00:17.3]} 46... Kxb4 {[%clk
0:00:03]} 47. Rxg6 {[%clk 0:00:17.8]} 47... Ra2+ {[%clk 0:00:03.3]} 48. Kd3
{[%clk 0:00:16.9]} 48... Rxf2 {[%clk 0:00:03]} 49. Rb6+ {[%clk 0:00:13.8]} 49...
Kc5 {[%clk 0:00:03.5]} 50. Rb8 {[%clk 0:00:12.6]} 50... Nb1 {[%clk 0:00:03.2]}
51. Rc8+ {[%clk 0:00:12.3]} 51... Kd6 {[%clk 0:00:02.7]} 52. Rc1 {[%clk
0:00:06.2]} 52... Rb2 {[%clk 0:00:02.6]} 53. Kc4 {[%clk 0:00:05.4]} 53... Ke5
{[%clk 0:00:01.7]} 54. Rd1 {[%clk 0:00:04.5]} 54... Ke4 {[%clk 0:00:01.8]} 55.
Rd4+ {[%clk 0:00:04.4]} 55... Kxe3 {[%clk 0:00:02.4]} 56. Rd8 {[%clk 0:00:05.3]}
56... Na3+ {[%clk 0:00:02.3]} 57. Kc3 {[%clk 0:00:05.7]} 57... Rc2+ {[%clk
0:00:02.5]} 58. Kb4 {[%clk 0:00:06.2]} 58... Nb1 {[%clk 0:00:03.4]} 59. Re8+
{[%clk 0:00:06.7]} 59... Kd2 {[%clk 0:00:03.6]} 60. Rd8+ {[%clk 0:00:07.6]}
60... Kc1 {[%clk 0:00:04.2]} 61. Rh8 {[%clk 0:00:07.8]} 61... Nd2 {[%clk
0:00:04.5]} 62. Rh1+ {[%clk 0:00:07.9]} 62... Kb2 {[%clk 0:00:05.2]} 63. Ka4
{[%clk 0:00:08.2]} 63... Nxb3 {[%clk 0:00:05]} 64. Rh3 {[%clk 0:00:08.8]} 64...
Rc4+ {[%clk 0:00:05.2]} 65. Kb5 {[%clk 0:00:09.1]} 65... Rg4 {[%clk 0:00:06]}
66. Rh2+ {[%clk 0:00:08.9]} 66... Kc3 {[%clk 0:00:06.2]} 67. Rh5 {[%clk
0:00:09.8]} 67... Nd4+ {[%clk 0:00:06.3]} 68. Kc5 {[%clk 0:00:09.6]} 68... Rg3
{[%clk 0:00:06.2]} 69. Rh8 {[%clk 0:00:08.9]} 69... Kd3 {[%clk 0:00:06.3]} 70.
Kd5 {[%clk 0:00:09.4]} 70... Rg5+ {[%clk 0:00:06.7]} 71. Kd6 {[%clk 0:00:09]}
71... Rg6+ {[%clk 0:00:06.8]} 72. Ke5 {[%clk 0:00:09]} 72... Re6+ {[%clk
0:00:07]} 73. Kd5 {[%clk 0:00:09.1]} 73... Re3 {[%clk 0:00:06.5]} 74. Ra8 {[%clk
0:00:09.1]} 74... Nc2 {[%clk 0:00:06.2]} 75. Rc8 {[%clk 0:00:08.7]} 75... Nb4+
{[%clk 0:00:06.4]} 76. Kd6 {[%clk 0:00:09.1]} 76... Kd4 {[%clk 0:00:05.9]} 77.
Rh8 {[%clk 0:00:09.7]} 77... Re4 {[%clk 0:00:05.5]} 78. Rh1 {[%clk 0:00:09.7]}
78... Rg4 {[%clk 0:00:05.3]} 79. Rd1+ {[%clk 0:00:09.8]} 79... Nd3 {[%clk
0:00:06]} 80. Ra1 {[%clk 0:00:09.9]} 80... Rg6+ {[%clk 0:00:06.4]} 81. Ke7
{[%clk 0:00:10.3]} 81... Ne5 {[%clk 0:00:05.6]} 82. Rd1+ {[%clk 0:00:09.6]}
82... Ke4 {[%clk 0:00:06]} 83. Re1+ {[%clk 0:00:10.2]} 83... Kf5 {[%clk
0:00:05.2]} 84. Rf1+ {[%clk 0:00:10.7]} 84... Kg5 {[%clk 0:00:04.9]} 85. Rg1+
{[%clk 0:00:10.2]} 85... Ng4 {[%clk 0:00:05.5]} 86. Kf7 {[%clk 0:00:10.7]} 86...
Rf6+ {[%clk 0:00:05.5]} 87. Kg7 {[%clk 0:00:11.3]} 87... Ra6 {[%clk 0:00:05.8]}
88. Rf1 {[%clk 0:00:11.8]} 88... Ne5 {[%clk 0:00:04]} 89. Rg1+ {[%clk
0:00:12.2]} 89... Kf5 {[%clk 0:00:03.7]} 90. Rf1+ {[%clk 0:00:12.9]} 90... Ke6
{[%clk 0:00:04.4]} 91. Rf6+ {[%clk 0:00:12.8]} 91... Kd5 {[%clk 0:00:05]} 92.
Rxa6 {[%clk 0:00:13.7]} 92... Kd4 {[%clk 0:00:05.3]} 93. Kf6 {[%clk 0:00:13.6]}
93... Nc4 {[%clk 0:00:05.4]} 94. Ke6 {[%clk 0:00:12.8]} 94... Kc3 {[%clk
0:00:05.7]} 95. Ra1 {[%clk 0:00:13.2]} 95... Kb2 {[%clk 0:00:05.6]} 96. Rh1
{[%clk 0:00:14]} 96... Kc3 {[%clk 0:00:05.7]} 97. Kd5 {[%clk 0:00:14.7]} 97...
Ne3+ {[%clk 0:00:03.8]} 98. Kc5 {[%clk 0:00:15.1]} 98... Nc2 {[%clk 0:00:03.4]}
99. Rh2 {[%clk 0:00:14.8]} 99... Kd3 {[%clk 0:00:03.6]} 100. Rh3+ {[%clk
0:00:13.4]} 100... Kd2 {[%clk 0:00:04.1]} 101. Kc4 {[%clk 0:00:13]} 101... Ne3+
{[%clk 0:00:04.7]} 102. Kd4 {[%clk 0:00:13.4]} 102... Nc2+ {[%clk 0:00:05.3]}
103. Ke4 {[%clk 0:00:13.9]} 103... Ke2 {[%clk 0:00:02.9]} 104. Rh2+ {[%clk
0:00:13.7]} 104... Kd1 {[%clk 0:00:03.1]} 105. Rf2 {[%clk 0:00:11.2]} 105... Ne1
{[%clk 0:00:01.7]} 106. Ke3 {[%clk 0:00:11.6]} 106... Kc1 {[%clk 0:00:01.5]}
107. Rf1 {[%clk 0:00:10.3]} 107... Kd1 {[%clk 0:00:02]} 108. Rh1 {[%clk
0:00:10.2]} 108... Kc2 {[%clk 0:00:02]} 109. Rxe1 {[%clk 0:00:10.6]} 1-0